Cogmind - Beta 10.2 @@@ ROGUE MODE // 2020.12.25 @ 01:53:13 Player: Meraxes Result: Destroyed by G-47 Trooper with Particle Gun Performance ------------- Evolutions (2) 1000 Regions Visited (4) 800 Robots Destroyed (39) 195 Value Destroyed (1071) 1071 Prototype IDs (0) 0 Alien Tech Used (0) 0 Bonus (10) 10 TOTAL SCORE: 3076 Bonus ------- High Alert Combat Kills 10 Cogmind --------- Core Integrity 0/550 Matter 270/300 Energy 100/100 System Corruption 5% Temperature Cool (9) Movement Walking (160) Ox1 Location -8/Materials Parts ------- > --- POWER (1) -------- (None) > --- PROPULSION (3) --- Titanium Leg Compact Wheel > --- UTILITY (5) ------ Small Storage Unit Large Storage Unit Hardened Light Armor Plating > --- WEAPON (2) ------- (None) > --- INVENTORY (12) --- (None) Peak State ------------ > --- POWER ------------ Deuterium Engine > --- PROPULSION ------- Light Treads Light Treads Compact Wheel > --- UTILITY ---------- Large Storage Unit Targeting Computer Targeting Computer Medium Armor Plating > --- WEAPON ----------- EM Pulse Cannon EM Pulse Cannon > --- INVENTORY -------- Light Ion Engine Compact Wheel Targeting Computer Shock Rifle Medium Laser Medium Laser Small Laser Heavy Assault Rifle [Rating: 18] Favorites ----------- Power Deuterium Engine Engine Deuterium Engine Propulsion Light Treads Treads Light Treads Leg Titanium Leg Wheel Compact Wheel Utility Targeting Computer Device Improved Heat Sink Storage Small Storage Unit Processor Targeting Computer Hackware System Shield Protection Hardened Light Armor Plating Weapon Light Assault Rifle Energy Gun Small Laser Energy Cannon EM Pulse Cannon Ballistic Gun Light Assault Rifle Launcher Grenade Launcher Build | -11 -10 -10 -9 -8 ------- Run | Scr Mat Min Mat Mat Slots Evolved 4 | . . . 2 2 Power . | . . . . . Propulsion 1 | . . . 1 . Utility 3 | . . . 1 2 Weapon . | . . . . . Parts Attached 34 | 7 1 . 10 16 Power 4 | 1 1 . 1 1 Engine 4 | 1 1 . 1 1 Core . | . . . . . Reactor . | . . . . . Propulsion 9 | 2 . . 3 4 Treads 4 | 2 . . 2 . Leg 2 | . . . . 2 Wheel 3 | . . . 1 2 Hover . | . . . . . Flight . | . . . . . Utility 10 | 1 . . 3 6 Device 1 | . . . . 1 Storage 3 | 1 . . 1 1 Processor 3 | . . . 2 1 Hackware 1 | . . . . 1 Protection 2 | . . . . 2 Artifact . | . . . . . Weapon 11 | 3 . . 3 5 Energy Gun 5 | 1 . . . 4 Energy Cannon 2 | . . . 2 . Ballistic Gun 3 | 2 . . . 1 Ballistic Cannon . | . . . . . Launcher 1 | . . . 1 . Special Weapon . | . . . . . Impact Weapon . | . . . . . Slashing Weapon . | . . . . . Piercing Weapon . | . . . . . Special Melee Weapon . | . . . . . Unidentified Prototypes . | . . . . . Parts Lost 23 | . . 1 2 20 Power 2 | . . . . 2 Propulsion 5 | . . . . 5 Utility 6 | . . . . 6 Weapon 10 | . . 1 2 7 Highest Loss Streak 16 | . . 1 1 16 Average Slot Usage (%) 78 | . 85 81 95 57 Engine 9 | . 14 14 11 5 Treads 15 | . 28 28 20 4 Leg 2 | . . . . 5 Wheel 7 | . . . 11 6 Storage 11 | . 14 14 11 11 Processor 12 | . . . 20 7 Protection 2 | . . . . 5 Energy Gun 3 | . 14 10 . 1 Energy Cannon 4 | . . . 7 3 Ballistic Gun 6 | . 14 14 6 2 Launcher 2 | . . . 6 . Naked Turns . | . . . . . Heaviest Build 44 | 11 11 9 37 44 Greatest Support 40 | 40 40 40 40 40 Greatest Overweight (x) 5 | . . . . 5 Average Overweight (x) . | . . . . 1 Largest Inventory Capacity 12 | 6 6 6 10 12 Average Capacity 8 | 5 6 6 7 10 Most Carried 8 | 3 4 4 8 8 Average Carried 3 | 1 3 4 5 2 Final Capacity 12 | 6 6 6 10 12 Final Carried 8 | 3 4 4 8 . Class Distribution -------------------- 100% | Mutant Dominant Class ---------------- Mutant | -10/Materials Mutant | -10/Mines Mutant | -9/Materials Mutant | -8/Materials Resources | -11 -10 -10 -9 -8 ----------- Run | Scr Mat Min Mat Mat Matter Collected 628 | 150 . 127 250 101 Remotely . | . . . . . Salvage Created 1303 | . . 127 653 523 Parts 64 | . . 5 39 20 Haulers Intercepted 1 | . . . 1 . Recyclers Shooed 1 | . . . 1 . Parts Field Recycled . | . . . . . Retrieved Matter . | . . . . . Parts Self-Destructed . | . . . . . Prevented . | . . . . . Kills | -11 -10 -10 -9 -8 ------- Run | Scr Mat Min Mat Mat Combat Hostiles Destroyed 25 | . . 4 13 8 Melee 1 | . . . . 1 Guns 15 | . . 4 4 7 Cannons 5 | . . . 5 . AOE 4 | . . . 4 . Classes Destroyed 11 | . . 2 8 1 Worker 3 | . . . 3 . Builder 2 | . . . 1 1 Hauler 1 | . . . 1 . Recycler 2 | . . . 1 1 Mechanic 1 | . . . 1 . Operator 1 | . . . 1 . Watcher 4 | . . . 4 . Swarmer 4 | . . 2 2 . Grunt 18 | . . 2 9 7 Brawler 1 | . . . . 1 Sentry 2 | . . . 2 . Best Kill Streak 11 | . . 2 11 7 Combat Bots Only 6 | . . 2 5 6 Max Kills in Single Turn 2 | . . 1 2 1 Gunslinging . | . . . . . Exploded 2 | . . . 2 . Melee 1 | . . . . 1 Uniques/NPCs Destroyed . | . . . . . Combat | -11 -10 -10 -9 -8 -------- Run | Scr Mat Min Mat Mat Damage Taken 2745 | . . 319 673 1753 Core 705 | . . 79 76 550 Absorbed by Shields . | . . . . . Core Remaining (%) 83 | 100 . 68 81 . Volleys Fired 104 | . . 16 45 43 Largest 2 | . . 2 2 2 Hottest 126 | . . 60 126 73 Shots Fired 174 | . . 31 73 70 Gun 133 | . . 31 32 70 Cannon 29 | . . . 29 . Launcher 12 | . . . 12 . Special . | . . . . . Kinetic 86 | . . 16 32 38 Thermal 36 | . . 15 . 21 Explosive 12 | . . . 12 . Electromagnetic 40 | . . . 29 11 Robot Hit Streak 12 | . . 6 12 9 Robot Miss Streak 4 | . . 3 3 4 Penetration Max . | . . . . . Secondary Targets 2 | . . . . 2 Max Gunslinging Chain 1 | . . . . 1 Shots Hit Robots 120 | . . 18 54 48 Core Hits 75 | . . 7 42 26 Critical Hits . | . . . . . Critical Kills . | . . . . . Critical Parts Destroyed . | . . . . . Melee Attacks . | . . . . . Impact . | . . . . . Slashing . | . . . . . Piercing . | . . . . . Sneak Attacks . | . . . . . Combat Hostiles . | . . . . . Follow-up Attacks . | . . . . . Damage Inflicted 2586 | . . 190 1495 901 Guns 1217 | . . 190 236 791 Cannons 625 | . . . 625 . Explosions 704 | . . . 615 89 Melee . | . . . . . Ramming 40 | . . . 19 21 Kinetic 754 | . . 65 236 453 Thermal 485 | . . 125 70 290 Explosive 545 | . . . 545 . Electromagnetic 762 | . . . 625 137 Impact . | . . . . . Slashing . | . . . . . Piercing . | . . . . . Highest Corruption 5 | . 1 1 . 5 Average Corruption 3 | . 1 1 . 4 Corruption Purged . | . . . . . Effects 5 | . . . . 5 Message Errors 3 | . . . . 3 Matter Fused 1 | . . . . 1 Energy Discharges 1 | . . . . 1 Overload Shots . | . . . . . Overflow Damage 40 | . . . 40 . Projectiles 38 | . . . 38 . Explosions 2 | . . . 2 . Melee . | . . . . . Knockbacks . | . . . . . Impact . | . . . . . Kinetic . | . . . . . Secondary . | . . . . . Self-Inflicted Damage 48 | . . . 40 8 Shots 1 | . . . 1 . Rammed 19 | . . . 3 16 Targets Rammed 23 | . . . 7 16 Kicked . | . . . . . Crushed 4 | . . . 4 . Highest Temperature 213 | . . 192 213 32 Average Temperature 51 | . . 86 58 10 Received Heat Transfer 1362 | . . 147 252 963 Siege Activations . | . . . . . Robots Corrupted . | . . . . . Combat Hostiles . | . . . . . Parts Fried 5 | . . . 5 . Impact Corruptions . | . . . . . Robots Melted . | . . . . . Combat Hostiles . | . . . . . Parts Melted 1 | . . . 1 . Heat Transferred 1082 | . . 275 100 707 Parts Sabotaged . | . . . . . Parts Stolen . | . . . . . Parts Stripped . | . . . . . Power Chain Reactions 2 | . . . 1 1 Missiles Intercepted . | . . . . . Alert | -11 -10 -10 -9 -8 ------- Run | Scr Mat Min Mat Mat Peak Influence 409 | . . 110 409 293 Initial 144 | . . . 42 144 Average 149 | . . 64 202 169 Maximum Alert Level 2 | . . . 2 1 Low Security (%) 59 | 100 100 100 39 55 Level 1 39 | . . . 56 44 Level 2 1 | . . . 3 . Level 3 . | . . . . . Level 4 . | . . . . . Level 5 . | . . . . . High Security . | . . . . . Max Security . | . . . . . Squads Dispatched 5 | . 1 . 2 2 Investigation . | . . . . . Extermination . | . . . . . Reinforcement 5 | . 1 . 2 2 Assault . | . . . . . Garrison . | . . . . . Intercept . | . . . . . Construction Impeded . | . . . . . Haulers Reinforced . | . . . . . Stealth | -11 -10 -10 -9 -8 --------- Run | Scr Mat Min Mat Mat Distress Signals 3 | . . . 2 1 Communications Jammed . | . . . . . Distress Signals . | . . . . . Times Spotted 50 | . 2 5 23 20 Peak Tracking Total 8 | . 2 3 8 5 Tactical Retreats 4 | . . 1 1 2 Traps | -11 -10 -10 -9 -8 ------- Run | Scr Mat Min Mat Mat Traps Triggered 1 | . 1 . . . Indirectly . | . . . . . Trap Hack Attempts . | . . . . . Triggered . | . . . . . Disarmed . | . . . . . Reprogrammed . | . . . . . Reused . | . . . . . Traps Extracted . | . . . . . Installed . | . . . . . Triggered . | . . . . . Machines | -11 -10 -10 -9 -8 ---------- Run | Scr Mat Min Mat Mat Machines Disabled 4 | . . . 3 1 Max in Single Turn 1 | . . . 1 1 Machines Sabotaged . | . . . . . Garrisons Compromised . | . . . . . Overloaded Fab Kills . | . . . . . Fab Network Shutdowns . | . . . . . Hacking | -11 -10 -10 -9 -8 --------- Run | Scr Mat Min Mat Mat Machines Accessed 1 | . . . 1 . Terminals . | . . . . . Fabricators . | . . . . . Repair Stations 1 | . . . 1 . Recycling Units . | . . . . . Scanalyzers . | . . . . . Garrison Access . | . . . . . Total Hacks 5 | . . . 5 . Successful 4 | . . . 4 . Failed 1 | . . . 1 . Catastrophic . | . . . . . Database Lockouts . | . . . . . Manual . | . . . . . Terminals . | . . . . . Fabricators . | . . . . . Repair Stations 5 | . . . 5 . Recycling Units . | . . . . . Scanalyzers . | . . . . . Garrison Access . | . . . . . Terminal Hacks . | . . . . . Fabricator Hacks . | . . . . . Repair Station Hacks 4 | . . . 4 . Scan Component 2 | . . . 2 . Repair 2 | . . . 2 . Recycling Unit Hacks . | . . . . . Scanalyzer . | . . . . . Garrison Access Hacks . | . . . . . Unauthorized Hacks . | . . . . . Terminals . | . . . . . Fabricators . | . . . . . Repair Stations . | . . . . . Recycling Units . | . . . . . Scanalyzers . | . . . . . Garrison Access . | . . . . . Data Cores Recovered . | . . . . . Used . | . . . . . Hacking Detections . | . . . . . Full Trace Events . | . . . . . Feedback Events . | . . . . . Feedback Blocked . | . . . . . Robot Schematics Acquired . | . . . . . Robots Built . | . . . . . Matter . | . . . . . Time . | . . . . . Total Robot Build Rating . | . . . . . Part Schematics Acquired . | . . . . . Parts Built . | . . . . . Matter . | . . . . . Time . | . . . . . Total Part Build Rating . | . . . . . Parts Repaired 2 | . . . 2 . Time 52 | . . . 52 . Parts Recycled . | . . . . . Recycled Matter . | . . . . . Retrieved Matter . | . . . . . Retrieved Components . | . . . . . Parts Scanalyzed . | . . . . . Part Schematics Acquired . | . . . . . Parts Damaged . | . . . . . Bothacking | -11 -10 -10 -9 -8 ------------ Run | Scr Mat Min Mat Mat Used RIF Installer . | . . . . . Robots Hacked . | . . . . . Non-combat . | . . . . . Combat . | . . . . . Robot Hacks Applied . | . . . . . Relay Couplers Released . | . . . . . Robots Rewired . | . . . . . Allies Hacked . | . . . . . Hacks Repelled . | . . . . . Allies | -11 -10 -10 -9 -8 -------- Run | Scr Mat Min Mat Mat Total Allies . | . . . . . Largest Group . | . . . . . Highest-Rated Group . | . . . . . Highest-Rated Ally . | . . . . . Total Orders . | . . . . . Ally Attacks . | . . . . . Total Damage . | . . . . . Kills . | . . . . . Allies Corrupted . | . . . . . Allies Melted . | . . . . . Intel | -11 -10 -10 -9 -8 ------- Run | Scr Mat Min Mat Mat Robot Analysis Total . | . . . . . Derelict Logs Recovered . | . . . . . Drone Launches . | . . . . . Drone Recoveries . | . . . . . Exploration | -11 -10 -10 -9 -8 ------------- Run | Scr Mat Min Mat Mat Turns Passed 1558 | 80 174 91 633 580 Spaces Moved 711 | 47 107 30 279 248 Core 16 | 7 . . . 9 Treads 517 | 40 107 30 279 61 Legs 166 | . . . . 166 Wheels 12 | . . . . 12 Hover . | . . . . . Flight . | . . . . . Fastest Speed 50 | 50 160 160 160 110 Average Speed 159 | 143 160 160 160 161 Slowest Speed 300 | 160 160 160 160 300 Overloaded Moves . | . . . . . Propulsion Burnouts . | . . . . . Robots Hopped . | . . . . . Cave-ins Triggered . | . . . . . Exploration Rate (%) 21 | 4 31 11 30 29 Regions Visited 4 Branch Regions 1 Pre-discovered Areas . | . . . . . Known Exits Taken . | . . . . . Unknown Exits Taken 4 | 1 1 1 1 . Scrap Searched . | . . . . . Spaces Dug . | . . . . . Terrain Destroyed 45 | . . . 41 4 Melee . | . . . . . Projectile . | . . . . . AOE 45 | . . . 41 4 Terrain Rammed . | . . . . . Walls Destroyed . | . . . . . Machines Disabled . | . . . . . Actions | -11 -10 -10 -9 -8 --------- Run | Scr Mat Min Mat Mat Total 930 | 57 110 45 394 324 Wait 43 | . 1 . 42 . Move 707 | 46 106 29 278 248 Hop . | . . . . . Pick Up 15 | 3 1 . 10 1 Fast Attach 18 | 7 1 . 3 7 Attach 15 | . . . 6 9 Detach . | . . . . . Swap 1 | . . . 1 . Drop 4 | 1 1 . 2 . Fire 104 | . . 16 45 43 Melee . | . . . . . Ram 15 | . . . . 15 Kick 1 | . . . . 1 Crush 7 | . . . 7 . Escape Stasis . | . . . . . Rewire . | . . . . . Trap . | . . . . . Miscellaneous . | . . . . . Route ------- -11/Scrapyard -10/Materials -10/Mines -9/Materials -8/Materials (discovered 2 exits: [*Fac] / [*Sto]) History --------- Turn | Location | Event 8 | -11/Scrapyard | Discovered new exit (range 15) 81 | -11/Scrapyard | Entered Materials 210 | -10/Materials | Discovered new exit (range 15) 255 | -10/Materials | Entered Mines 307 | -10/Mines | Discovered new exit (range 11) 317 | -10/Mines | Build established: Mutant 346 | -10/Mines | Entered Materials 346 | -9/Materials | Evolved 2 slots: Propulsion x1, Utility x1 451 | -9/Materials | Repaired Lgt. Treads 482 | -9/Materials | Repaired Lgt. Treads 957 | -9/Materials | Discovered new exit (range 8) 979 | -9/Materials | Entered another Materials area 979 | -8/Materials | Evolved 2 slots: Utility x2 1009 | -8/Materials | Discovered new exit (range 15) 1259 | -8/Materials | Lost 16 parts (1p4n4u7w) 1260 | -8/Materials | Core integrity fell below 50% 1320 | -8/Materials | Core integrity fell below 20% 1528 | -8/Materials | Lost 3 parts (1p1n1u) 1556 | -8/Materials | Discovered new exit (range 5) 1559 | -8/Materials | Destroyed by G-47 Trooper with Particle Gun Last Messages --------------- 01332_ Acquired Titanium Leg. 01350_ W-25 Informer sends out distress signal. 01358_ Slammed into R-06 Scavenger. 01358_ R-06 Scavenger destroyed. 01358_ Destabilizing: System corrupted (+2). 01359_ Acquired 20 matter. 01362_ Acquired Sml. Storage Unit. 01365_ Acquired Com. Wheel. 01376_ Acquired Hrd. Light Armor Plating. 01381_ System corrupted: Matter fused (-10). 01384_ R-06 Scavenger collects Lgt. Nuclear Core. 01389_ Imp. Heat Sink destroyed. 01397_ =0ATK9AYFWWH4ZGE1FOBFYE4/ 01428_ Acquired System Shield. 01452_ Aluminum Leg destroyed. 01471_ Lgt. Ion Engine destroyed. 01483_ System corrupted: Energy discharge (-40). 01497_ System Shield destroyed. 01538_